bitfinex-derivatives/quotes_SOLF0:USTF0_20250820
["timestamp","ask_amount","ask_price","bid_price","bid_amount"]
[1755696885115,5.99234381,180.25,180.15,5.5502]
[1755696885116,5.5491,180.2,180.15,5.5502]
[1755696885312,2.26,180.25,180.07,8.24559748]
[1755696885512,2.26,180.25,180.08,3.13]
[1755696885818,2.26,180.25,180.1,3.13]
[1755696886616,2.5733733,180.24,180.1,3.13]
[1755696886920,2.26,180.25,180.1,3.13]
[1755696887117,2.57358119,180.24,180.1,3.13]
[1755696887318,5.5493,180.19,180.14,5.5505]
[1755696887514,2.26,180.25,180.14,3.13]
[1755696887718,5.5478,180.24,180.14,3.13]
[1755696887919,2.26,180.25,180.14,3.13]
[1755696889022,5.5483,180.22,180.14,3.13]
[1755696889522,5.5483,180.22,180.17,5.5495]
[1755696889725,5.548,180.23,180.17,3.13]
[1755696889923,2.26,180.25,180.1,3.13]
[1755696890630,2.26,180.25,180.16,5.5498]
[1755696890923,2.26,180.25,180.1,3.13]
[1755696891521,5.5491,180.2,180.1,3.13]
[1755696891831,2.26,180.25,180.1,3.13]
[1755696892127,2.26,180.25,180.09,9.21544797]
[1755696892325,124.40286367,180.28,180.11,11.1033]
[1755696892523,5.5472,180.26,180.12,6.08544797]
[1755696892728,7.8072,180.26,180.17,3.13]
[1755696892921,2.26,180.26,180.17,3.13]
[1755696893518,2.26,180.26,180.11,11.1033]
[1755696893519,2.26,180.26,180.11,3.13]
[1755696893724,2.26,180.26,180.19,5.5489]
[1755696893924,2.26,180.26,180.16,3.13]
[1755696894131,5.5484,180.22,180.16,3.13]
[1755696894525,2.26,180.26,180.11,3.13]
[1755696894724,4.87742781,180.25,180.13,5.5508]
[1755696894925,2.26,180.24,180.11,3.13]
[1755696895131,5.5488,180.21,180.11,3.13]
[1755696895320,2.26,180.24,180.11,3.13]
[1755696895826,5.5494,180.19,180.15,5.5501]
[1755696896222,2.28,180.18,180.06,13.94287578]
[1755696896428,2.28,180.18,180.06,2.98]
[1755696897227,4.87742781,180.22,180.06,9.06544797]
[1755696897432,4.87742781,180.22,180.06,2.98]
[1755696897433,2.28,180.21,180.06,2.98]
[1755696897737,5.5498,180.17,180.05,6.08544797]
[1755696897923,2.28,180.21,180.09,2.98]
[1755696898334,2.28,180.16,180.05,2.98]
[1755696898531,4.87742781,180.22,180.05,2.98]
[1755696898532,2.28,180.21,180.05,2.98]
[1755696898731,2.57850126,180.2,180.05,2.98]
[1755696898932,2.28,180.21,180.05,2.98]
[1755696899235,2.28,180.21,180.08,2.98]
[1755696899432,2.57913569,180.2,180.08,2.98]
[1755696899635,2.28,180.19,180.1,5.5517]
[1755696900136,5.5509,180.14,180.08,2.98]
[1755696900439,4.87742781,180.14,179.99,2.98]
[1755696900631,2.28,180.13,180.06,5.553]
[1755696900937,2.28,180.18,180.02,2.98]
[1755696901235,2.28,180.18,180.1,5.5517]
[1755696901431,2.28,180.18,180.05,2.98]
[1755696902032,5.5503,180.16,180.05,2.98]
[1755696902235,2.28,180.18,180.05,2.98]
[1755696902733,2.28,180.23,180.05,4.87742781]
[1755696902939,2.28,180.23,180.09,4.87742781]
[1755696903136,2.28,180.27,180.11,2.98]
[1755696903335,2.28,180.27,180.12,2.98]
[1755696903531,2.28,180.24,180.12,2.98]
[1755696903839,2.28,180.22,180.06,10.96287578]
[1755696904033,124.40286367,180.28,180.1,2.98]
[1755696904233,2.28,180.26,180.1,9.06544797]
[1755696904431,2.28,180.26,180.11,2.98]
[1755696904732,373.0,180.31,180.15,9.06544797]
[1755696904938,373.0,180.31,180.19,2.98]
[1755696905437,2.28,180.38,180.23,2.98]
[1755696905738,2.28,180.43,180.28,6.08544797]
[1755696905937,372.98,180.46,180.31,2.98]
[1755696906134,372.98,180.46,180.32,10.96287578]
[1755696906440,372.98,180.46,180.33,5.5446]
[1755696906737,5.5419,180.43,180.31,2.98]
[1755696906938,2.28,180.45,180.31,2.98]
[1755696907528,5.5434,180.38,180.25,6.08544797]
[1755696907736,2.28,180.4,180.26,2.98]
[1755696908639,7.8228,180.4,180.31,5.5452]
[1755696908835,2.28,180.4,180.26,2.98]
[1755696909142,5.5442,180.36,180.26,8.5267]
[1755696909333,2.28,180.42,180.26,2.98]
[1755696909539,2.28,180.4,180.26,2.98]
[1755696909838,2.28,180.37,180.21,2.98]
[1755696910235,5.546,180.3,180.21,2.98]
[1755696910431,2.28,180.33,180.21,2.98]
[1755696911447,5.5457,180.31,180.23,5.5479]
[1755696911943,5.5464,180.29,180.21,8.5284]
[1755696912158,2.28,180.33,180.21,2.98]
[1755696912344,124.72891665,180.44,180.23,2.98]
[1755696912551,123.76373797,180.44,180.23,2.98]
[1755696912839,2.28,180.43,180.23,2.98]
[1755696913046,121.48373797,180.44,180.23,2.98]
[1755696913047,8.22989995,180.42,180.23,2.98]
[1755696913243,2.28,180.41,180.23,2.98]
[1755696914046,5.5439,180.37,180.23,2.98]
[1755696914347,121.48373797,180.44,180.27,8.22989995]
[1755696914541,121.48373797,180.44,180.28,2.98]
[1755696915249,123.76373797,180.44,180.28,2.98]
[1755696915843,2.28,180.44,180.35,2.98]
[1755696916051,2.28,180.5,180.35,2.98]
[1755696917254,148.34,180.53,180.35,2.98]
[1755696917443,2.27,180.55,180.44,2.98]
[1755696917639,150.49,180.6,180.44,2.98]
[1755696917945,2.27,180.6,180.44,2.98]
[1755696918147,2.27,180.64,180.48,2.98]
[1755696920042,24.88989995,180.66,180.48,2.98]
[1755696920248,2.27,180.59,180.44,62.0]
[1755696920647,2.27,180.55,180.43,375.66]
[1755696921049,2.27,180.6,180.38,2.98]
[1755696921255,2.27,180.6,180.43,2.98]
[1755696922749,2.27,180.56,180.43,2.98]
[1755696923151,5.5389,180.53,180.44,5.5414]
[1755696923360,2.27,180.56,180.43,2.98]
[1755696923747,2.27,180.61,180.48,2.98]
[1755696924148,150.83,180.66,180.48,2.98]
[1755696924648,5.5375,180.57,180.48,2.98]
[1755696924850,2.27,180.58,180.43,2.98]
[1755696925246,2.27,180.58,180.39,8.22989995]
[1755696925247,7.8074,180.58,180.48,2.98]
[1755696925554,2.27,180.63,180.48,2.98]
[1755696926251,5.5365,180.61,180.52,5.5388]
[1755696926448,2.27,180.63,180.48,2.98]
[1755696927645,2.27,180.63,180.44,70.22989995]
[1755696927646,2.28,180.61,180.41,3.08]
[1755696927848,5.5386,180.54,180.45,5.5411]
[1755696928049,2.28,180.56,180.46,3.08]
[1755696928245,383.7489,180.67,180.46,3.08]
[1755696928246,2.28,180.61,180.46,3.08]
[1755696928951,372.68,180.67,180.46,3.08]
[1755696929155,2.28,180.66,180.46,3.08]
[1755696929347,148.94,180.7,180.5,8.22989995]
[1755696929547,148.94,180.7,180.57,3.08]
[1755696929749,2.28,180.69,180.57,3.08]
[1755696930253,2.28,180.69,180.52,3.08]
[1755696930552,2.28,180.65,180.52,3.08]
[1755696931349,2.28,180.65,180.47,375.36]
[1755696932350,166.56381538,180.7,180.41,232.43499956]
[1755696932351,2.28,180.6,180.41,86.51499956]
[1755696932545,149.04,180.6,180.41,86.51499956]
[1755696932750,2.28,180.59,180.41,86.51499956]
[1755696932950,5.5388,180.53,180.46,5.5406]
[1755696933152,2.28,180.59,180.41,3.08]
[1755696933556,2.28,180.59,180.39,8.22989995]
[1755696933755,2.28,180.55,180.28,70.22989995]
[1755696933951,24.88989995,180.56,180.29,3.08]
[1755696933952,2.28,180.5,180.29,3.08]
[1755696934145,2.28,180.48,180.29,3.08]
[1755696934552,8.22989995,180.46,180.29,3.08]
[1755696934749,8.22989995,180.46,180.24,78.3]
[1755696934750,2.28,180.45,180.24,78.3]
[1755696934955,2.28,180.4,180.24,3.08]
[1755696935154,5.5454,180.32,180.24,3.08]
[1755696935348,2.28,180.36,180.19,3.08]
[1755696935749,2.28,180.35,180.19,3.08]
[1755696936154,151.6,180.35,180.25,5.547]
[1755696936451,151.6,180.35,180.19,3.08]
[1755696936653,149.32,180.35,180.19,3.08]
[1755696936959,151.6,180.35,180.19,3.08]
[1755696937859,2.28,180.35,180.19,3.08]
[1755696938255,2.28,180.35,180.18,3.08]
[1755696938556,372.24,180.37,180.18,3.08]
[1755696939456,2.28,180.36,180.18,3.08]
[1755696940659,2.28,180.41,180.21,3.08]
[1755696941149,372.48,180.47,180.25,8.22989995]
[1755696941352,524.4,180.47,180.26,3.08]
[1755696941753,522.12,180.47,180.26,3.08]
[1755696941954,2.28,180.46,180.26,3.08]
[1755696942260,2.28,180.46,180.35,5.544]
[1755696942466,2.28,180.46,180.26,3.08]
[1755696942754,372.48,180.47,180.34,3.08]
[1755696942956,2.28,180.49,180.34,3.08]
[1755696943851,2.28,180.49,180.39,5.5427]
[1755696944051,2.28,180.49,180.34,3.08]
[1755696945058,2.28,180.49,180.43,5.5415]
[1755696945355,2.28,180.49,180.34,3.08]
[1755696945556,2.28,180.49,180.45,5.5409]
[1755696945863,2.28,180.51,180.34,3.08]
[1755696946655,2.28,180.51,180.44,5.5413]
[1755696946861,2.28,180.51,180.34,3.08]
[1755696947860,2.28,180.51,180.45,5.5411]
[1755696948255,2.28,180.51,180.42,5.5419]
[1755696948451,2.28,180.5,180.34,3.08]
[1755696948758,2.28,180.5,180.3,3.08]
[1755696948962,2.28,180.49,180.3,3.08]
[1755696949463,2.28,180.48,180.39,5.5427]
[1755696949658,2.28,180.48,180.3,3.08]
[1755696950660,151.88,180.48,180.41,5.5422]
[1755696950857,151.88,180.48,180.33,3.08]
[1755696951065,2.28,180.47,180.29,152.82]
[1755696951465,2.28,180.47,180.3,3.08]
[1755696952467,2.28,180.47,180.31,3.08]
[1755696953158,2.28,180.47,180.42,5.542]
[1755696953363,2.28,180.5,180.35,3.08]
[1755696954163,2.28,180.5,180.45,5.5411]
[1755696954355,2.28,180.51,180.35,3.08]
[1755696954965,5.5398,180.5,180.41,5.5421]
[1755696955467,2.28,180.48,180.35,3.08]
[1755696956864,2.28,180.48,180.4,5.5425]
[1755696957162,2.28,180.48,180.35,3.08]
[1755696957353,5.5408,180.47,180.38,5.5431]
[1755696957556,2.27,180.46,180.31,3.0]
[1755696957958,2.27,180.46,180.38,5.543]
[1755696958362,2.27,180.46,180.31,3.0]
[1755696958557,2.27,180.46,180.35,3.0]
[1755696959059,2.27,180.46,180.39,5.5429]
[1755696959263,2.27,180.46,180.3,3.0]
[1755696959767,2.27,180.44,180.3,3.0]
[1755696960372,2.27,180.41,180.25,3.0]
[1755696961260,2.27,180.41,180.35,5.544]
[1755696961859,2.27,180.41,180.3,3.0]
[1755696962264,372.48,180.44,180.3,3.0]
[1755696962467,2.27,180.51,180.3,3.0]
[1755696962665,2.27,180.51,180.31,11.0909]
[1755696962858,2.27,180.51,180.32,3.0]
[1755696963264,5.5397,180.5,180.41,5.5421]
[1755696963459,2.27,180.51,180.34,3.0]
[1755696963861,522.06,180.55,180.44,3.0]
[1755696963862,372.52,180.55,180.44,3.0]
[1755696964472,372.52,180.55,180.48,5.54]
[1755696964774,372.52,180.55,180.44,3.0]
[1755696966666,2.27,180.56,180.44,3.0]
[1755696967775,2.27,180.56,180.51,5.5392]
[1755696968074,2.27,180.56,180.44,3.0]
[1755696969377,2.27,180.56,180.47,5.5405]
[1755696969573,2.27,180.56,180.44,3.0]
[1755696969778,2.27,180.65,180.53,3.0]
[1755696970973,2.27,180.7,180.53,3.0]
[1755696972274,2.27,180.68,180.53,3.0]
[1755696972479,7.8061,180.62,180.53,3.0]
[1755696972877,2.27,180.62,180.55,5.5378]
[1755696973080,2.27,180.62,180.53,3.0]
[1755696973275,2.27,180.62,180.48,3.0]
[1755696973472,2.27,180.62,180.52,5.5387]
[1755696973670,2.27,180.62,180.48,3.0]
[1755696974184,2.27,180.62,180.43,375.4]
[1755696974371,2.27,180.62,180.43,372.4]
[1755696974576,2.27,180.62,180.44,3.0]
[1755696974871,151.31,180.62,180.44,3.0]
[1755696975077,2.27,180.62,180.45,3.0]
[1755696975281,151.29,180.67,180.49,8.22989995]
[1755696975583,151.29,180.67,180.5,62.0]
[1755696975773,151.29,180.67,180.51,3.0]
[1755696976180,151.29,180.67,180.62,5.5359]
[1755696976381,149.02,180.67,180.58,3.0]
[1755696976778,2.27,180.72,180.58,3.0]
[1755696977181,5.5337,180.7,180.58,3.0]
[1755696977584,2.27,180.72,180.58,3.0]
[1755696978390,5.5337,180.7,180.62,5.5357]
[1755696978583,2.27,180.72,180.58,3.0]
[1755696978776,372.4,180.73,180.58,3.0]
[1755696978982,372.4,180.73,180.59,62.0]
[1755696979187,121.84914035,180.83,180.61,3.0]
[1755696979381,121.84914035,180.83,180.66,3.0]
[1755696979776,121.84914035,180.83,180.74,3.0]
[1755696980078,2.27,180.9,180.74,3.0]
[1755696980579,372.18,180.95,180.76,3.0]
[1755696980779,2.27,180.99,180.81,3.0]
[1755696981386,7.7947,180.99,180.81,3.0]
[1755696981586,2.27,180.99,180.81,3.0]
[1755696982375,2.27,180.98,180.85,5.5289]
[1755696982684,2.27,180.98,180.76,3.0]
[1755696982881,5.5271,180.91,180.76,3.0]
[1755696983086,2.27,180.92,180.76,3.0]
[1755696983286,374.21,180.92,180.76,3.0]
[1755696983484,2.27,180.91,180.76,3.0]
[1755696983785,2.27,180.89,180.76,3.0]
[1755696983983,2.27,180.86,180.76,3.0]
[1755696984288,2.27,180.86,180.71,3.0]
[1755696984685,2.27,180.86,180.66,3.0]
[1755696985084,2.27,180.86,180.71,5.5331]
[1755696985282,149.56,180.85,180.66,3.0]
[1755696985483,2.27,180.84,180.66,3.0]
[1755696986093,2.27,180.84,180.74,5.5323]
[1755696986387,2.27,180.84,180.71,2.89]
[1755696986683,371.94,180.92,180.65,211.62]
[1755696986684,2.27,180.9,180.76,2.89]
[1755696987087,16.66,181.08,180.77,8.22989995]
[1755696987284,125.67210003,181.0,180.78,2.89]
[1755696987482,275.39210003,181.0,180.78,2.89]
[1755696987684,125.67210003,181.0,180.78,2.89]
[1755696987990,2.27,181.0,180.83,2.89]
[1755696988185,5.5271,180.91,180.78,152.61]
[1755696988380,152.05,180.96,180.78,152.61]
[1755696988590,152.05,180.96,180.79,2.89]
[1755696988787,149.78,180.96,180.79,2.89]
[1755696988979,2.27,180.95,180.79,2.89]
[1755696989184,5.5271,180.91,180.83,5.5295]
[1755696989384,152.93,180.95,180.83,5.5295]
[1755696989889,2.27,180.95,180.79,2.89]
[1755696990782,5.5255,180.96,180.88,5.528]
[1755696990979,2.27,181.0,180.86,2.89]
[1755696991387,371.88,181.03,180.86,2.89]
[1755696992280,7.7928,181.05,180.96,5.5252]
[1755696992484,150.5,181.07,180.88,2.89]
[1755696992786,5.5239,181.02,180.88,2.89]
[1755696992991,152.77,181.07,180.89,2.89]
[1755696993291,5.523,181.05,180.96,5.5253]
[1755696993489,5.523,181.05,180.9,62.0]
[1755696993490,2.27,181.07,180.95,2.89]
[1755696993885,2.27,181.07,180.98,5.5249]
[1755696994086,2.27,181.07,180.95,2.89]
[1755696994087,2.27,181.07,180.9,62.0]
[1755696994483,2.27,181.07,180.95,5.5258]
[1755696994685,150.34,181.06,180.93,2.89]
[1755696995285,2.27,181.04,180.88,2.89]
[1755696995893,2.27,181.04,180.9,2.89]
[1755696996585,2.27,181.06,180.85,2.89]
[1755696996789,2.27,181.04,180.85,2.89]
[1755696996985,5.5252,180.98,180.91,5.5271]
[1755696997181,0.04017781,180.96,180.82,87.01178728]
[1755696997393,0.04017781,180.96,180.85,2.89]
[1755696997591,2.27,181.03,180.86,4.98608165]
[1755696997791,2.27,181.03,180.88,2.89]
[1755696998195,2.27,180.99,180.88,2.89]
[1755696998492,5.5277,180.9,180.82,8.4197]
[1755696998695,150.54,181.08,180.77,374.43]
[1755696998696,2.27,180.96,180.77,374.43]
[1755696998885,2.27,180.96,180.78,4.98744987]
[1755696999083,5.5275,180.9,180.77,374.43]
[1755696999295,2.27,180.96,180.79,2.89]
[1755696999695,2.27,180.96,180.81,2.89]
[1755696999990,2.27,180.96,180.83,2.89]
[1755697000990,371.48,181.0,180.77,371.54]
[1755697000991,371.48,181.0,180.85,2.89]
[1755697001191,371.48,181.0,180.93,5.5262]
[1755697001192,377.0045,181.0,180.93,5.5262]
[1755697001496,2.27,181.01,180.9,2.89]
[1755697001699,2.27,181.07,180.9,2.89]
[1755697001893,33.56984381,181.3,180.9,2.89]
[1755697001894,3.23168461,181.12,180.92,2.89]
[1755697002195,10.49989995,181.17,180.95,8.22989995]
[1755697002388,161.65989995,181.17,180.96,4.98876304]
[1755697002585,161.65989995,181.17,180.97,2.89]
[1755697002789,161.65989995,181.17,180.99,2.89]
[1755697003396,5.5207,181.12,180.99,2.89]
[1755697003599,2.27,181.16,180.99,2.89]
[1755697004196,150.96,181.15,180.99,2.89]
[1755697004395,5.5218,181.09,181.01,5.5237]
[1755697004594,5.5218,181.09,180.99,2.89]
[1755697004789,2.27,181.14,180.99,2.89]
[1755697005694,2.27,181.14,181.0,4.98645298]
[1755697005905,2.27,181.14,180.99,2.89]
[1755697006395,5.5216,181.1,180.99,2.89]
[1755697006598,2.27,181.14,180.99,2.89]
[1755697006999,2.27,181.14,181.0,4.99048294]
[1755697007186,2.27,181.14,180.99,2.89]
[1755697007589,2.26,181.1,180.99,2.89]
[1755697007789,150.68,181.14,180.99,2.89]
[1755697007999,156.2001,181.14,181.06,5.5223]
[1755697008393,150.68,181.14,181.01,2.89]
[1755697008599,371.48,181.18,181.08,5.5218]
[1755697008899,371.48,181.18,181.03,2.89]
[1755697009100,150.86,181.21,181.05,2.89]
[1755697009393,2.26,181.23,181.06,4.99836304]
[1755697009602,2.26,181.23,181.08,2.89]
[1755697009790,2.26,181.23,181.09,4.99836304]
[1755697009996,2.26,181.23,181.14,5.5198]
[1755697010196,2.26,181.23,181.1,2.89]
[1755697010396,153.02,181.28,181.1,2.89]
[1755697010598,153.02,181.28,181.12,2.89]
[1755697010798,2.26,181.28,181.14,2.89]
[1755697010999,2.26,181.28,181.23,5.5173]
[1755697011300,2.26,181.34,181.2,2.89]
[1755697011496,5.5145,181.33,181.24,5.5167]
[1755697011696,5.5145,181.33,181.2,2.89]
[1755697011697,0.03939327,181.27,181.2,2.89]
[1755697012300,0.03939327,181.27,181.21,4.9961371]
[1755697012498,0.03939327,181.27,181.2,2.89]
[1755697013596,0.03939327,181.27,181.15,2.89]
[1755697013900,0.03939327,181.27,180.92,6.08544797]
[1755697013901,0.03939327,181.27,181.16,4.98900923]
[1755697014102,5.5179,181.22,181.12,2.89]
[1755697014307,10.48989995,181.27,181.07,2.89]
[1755697014603,5.5185,181.2,181.11,5.5208]
[1755697014797,2.26,181.22,181.07,2.89]
[1755697015104,2.26,181.22,181.08,4.99478497]
[1755697015307,2.26,181.22,181.09,4.99478497]
[1755697015605,2.26,181.22,181.1,4.99590725]
[1755697015902,2.26,181.22,181.07,2.89]
[1755697016290,2.26,181.22,181.08,4.99857139]
[1755697016505,2.26,181.22,181.07,2.89]
[1755697016700,2.26,181.22,181.14,5.52]
[1755697017004,373.34,181.27,181.09,3.12]
[1755697017207,373.34,181.27,181.1,4.99728074]
[1755697017503,371.1,181.27,181.09,3.12]
[1755697017804,2.24,181.26,181.12,5.5204]
[1755697018005,2.24,181.26,181.09,3.12]
[1755697018405,2.24,181.18,181.04,3.12]
[1755697018604,2.24,181.18,181.05,5.00775848]
[1755697018805,2.24,181.18,181.06,5.00775848]
[1755697019104,2.24,181.18,181.04,3.12]
[1755697019502,2.24,181.18,181.05,5.01778397]
[1755697019700,2.24,181.18,181.04,3.12]
[1755697019896,2.24,181.18,180.99,374.22]
[1755697020195,2.24,181.18,181.0,5.01885289]
[1755697020401,5.5231,181.04,181.01,5.01885289]
[1755697020602,2.24,181.02,180.92,3.12]
[1755697020802,2.24,181.02,180.93,4.98311232]
[1755697021003,2.24,181.02,180.86,374.1]
[1755697021202,2.24,181.02,180.87,3.12]
[1755697022202,8.22989995,181.02,180.87,3.12]
[1755697022602,8.22989995,181.02,180.8,3.12]
[1755697022799,8.22989995,180.97,180.8,3.12]
[1755697023001,371.04,181.0,180.8,3.12]
[1755697023298,151.62,181.03,180.81,3.12]
[1755697023500,151.62,181.03,180.85,8.22989995]
[1755697023704,151.62,181.03,180.89,3.12]
[1755697024806,371.04,181.05,180.89,3.12]
[1755697025207,371.04,181.05,180.86,3.12]
[1755697025402,160.22989995,181.12,180.91,3.12]
[1755697025799,371.16,181.15,180.91,3.12]
[1755697025998,8.22989995,181.14,180.91,3.12]
[1755697026197,463.45307848,181.19,180.95,8.22989995]
[1755697026395,152.02,181.18,180.96,3.12]
[1755697026599,8.22989995,181.14,180.96,3.12]
[1755697027400,8.22989995,181.09,180.91,3.12]
[1755697027597,152.02,181.08,180.91,3.12]
[1755697027797,8.22989995,181.18,180.92,3.12]
[1755697028002,151.98,181.17,180.92,3.12]
[1755697028202,8.22989995,181.18,180.93,8.22989995]
[1755697028398,8.22989995,181.13,180.94,3.12]
[1755697028909,152.32,181.12,180.94,3.12]
[1755697029103,152.32,181.12,180.94,65.12]
[1755697029406,8.22989995,181.08,180.89,371.16]
[1755697029601,0.03588605,181.05,180.89,374.28]
[1755697029912,0.03588605,181.05,180.96,3.12]
[1755697030099,152.48,181.07,180.96,3.12]
[1755697030304,160.70989995,181.07,180.89,374.28]
[1755697030607,152.48,181.07,180.89,374.28]
[1755697030807,0.03589983,181.03,180.9,3.12]
[1755697031207,8.22989995,181.13,180.9,3.12]
[1755697031504,8.22989995,181.18,180.95,3.12]
[1755697031809,455.22317853,181.19,180.97,3.12]
[1755697032009,455.22317853,181.19,181.03,3.12]
[1755697032512,455.22317853,181.19,181.06,5.5225]
[1755697032698,455.22317853,181.19,180.97,62.0]
[1755697032699,10.78514144,181.18,181.07,4.9474385]
[1755697032903,8.22989995,181.13,180.93,3.12]
[1755697033101,8.22989995,181.13,180.94,4.94856562]
[1755697033302,8.22989995,181.13,180.95,4.94856562]
[1755697033505,5.5219,181.08,180.96,4.94856562]
[1755697033704,152.48,181.07,180.97,4.94856562]
[1755697033911,8.22989995,181.03,180.88,3.12]
[1755697034102,8.22989995,181.03,180.89,4.95219558]
[1755697034303,8.22989995,181.03,180.9,4.95219558]
[1755697034504,0.03732582,180.97,180.91,4.95219558]
[1755697034802,0.03732582,180.97,180.92,4.95219558]
[1755697035009,0.03732582,180.97,180.93,8.07219558]
[1755697035205,152.54,181.04,180.94,4.95219558]
[1755697035508,152.56,181.03,180.95,4.95219558]
[1755697035805,152.56,181.05,180.96,4.95219558]
[1755697036002,371.16,181.06,180.97,4.95219558]
[1755697036202,371.16,181.06,180.98,4.95219558]
[1755697036402,371.16,181.06,180.92,3.12]
[1755697036403,371.16,181.06,180.99,4.95219558]
[1755697036599,371.16,181.06,181.0,4.95219558]
[1755697036803,371.16,181.06,181.01,4.95219558]
[1755697037011,371.16,181.06,180.92,3.12]
[1755697037208,371.16,181.06,180.93,4.95600516]
[1755697037514,371.16,181.06,180.94,4.95600516]
[1755697037808,371.16,181.06,180.95,4.95600516]
[1755697037999,371.16,181.06,180.96,4.95600516]
[1755697038404,8.22989995,181.02,180.81,3.12]
[1755697038598,8.22989995,181.02,180.83,3.12]
[1755697038807,152.44,181.02,180.97,5.5251]
[1755697039006,152.44,181.02,180.91,3.12]
[1755697039408,152.44,181.02,180.96,5.5254]
[1755697039706,152.44,181.02,180.91,3.12]
[1755697039905,152.44,181.02,180.92,10.48192382]
[1755697040111,371.16,181.06,180.93,4.95522382]
[1755697040312,371.16,181.06,180.89,3.12]
[1755697040313,371.16,181.06,180.94,4.95522382]
[1755697040503,152.58,181.05,180.95,4.95522382]
[1755697040703,152.58,181.05,180.96,4.95522382]
[1755697040912,152.58,181.05,180.97,4.95522382]
[1755697041113,152.58,181.05,180.98,4.95522382]
[1755697041306,523.74,181.06,180.99,4.95522382]
[1755697041613,523.74,181.06,181.0,4.95522382]
[1755697041614,371.16,181.06,181.0,4.95522382]
[1755697041814,371.16,181.06,180.93,3.12]
[1755697042108,152.56,181.07,180.93,3.12]
[1755697042109,8.22989995,181.15,180.95,3.12]
[1755697042311,371.28,181.16,180.97,3.12]
[1755697042606,371.28,181.16,180.93,11.0525]
[1755697042607,152.5,181.15,181.09,5.5213]
[1755697042807,84.06317853,181.19,181.1,4.95306704]
[1755697043108,84.06317853,181.19,181.11,4.95306704]
[1755697043317,84.06317853,181.19,181.12,4.95306704]
[1755697043606,84.06317853,181.19,181.13,4.95306704]
[1755697043811,84.06317853,181.19,181.14,4.95306704]
[1755697044011,84.06317853,181.19,181.15,4.95306704]
[1755697044209,84.06317853,181.19,181.16,4.95306704]
[1755697044404,84.06317853,181.19,181.17,4.95306704]
[1755697044601,84.06317853,181.19,181.11,3.12]
[1755697044801,84.06317853,181.19,181.12,4.95307673]
[1755697045006,84.06317853,181.19,181.13,4.95307673]
[1755697045208,84.06317853,181.19,181.14,4.95307673]
[1755697045404,152.6,181.23,181.15,4.95307673]